Cogmind - Beta 13 @@@ ROGUE MODE // 2024.05.10 @ 02:05:42 Player: Some Pennies Result: Destroyed by 0S-DEC(R) with Subdweller Beam Cannon Performance ------------- Evolutions (0) 0 Regions Visited (3) 600 Robots Destroyed (38) 190 Value Destroyed (826) 826 Prototype IDs (0) 0 Alien Tech Used (0) 0 Bonus (50) 50 TOTAL SCORE: 1666 Bonus ------- Follower Combat Kills 50 Cogmind --------- Core Integrity 0/250 Matter 272/300 Energy 139/160 System Corruption 0% Temperature Cool (9) Movement Treading (320) Ox2 Location -10/Subcaves Parts ------- > --- POWER (1) -------- Light Nuclear Core > --- PROPULSION (2) --- Light Treads Light Treads > --- UTILITY (2) ------ Huge Storage Unit Light Armor Plating > --- WEAPON (2) ------- Beam Cannon Heavy Assault Rifle > --- INVENTORY (25) --- Ion Engine Light Ion Engine Improved Ion Engine Improved Ion Engine Light Treads Improved Heat Sink Improved Heat Sink Medium Matter Pod (100) Structural Scanner Structural Scanner Signal Interpreter Improved Terrain Scanner Improved Terrain Scanner Seismic Detector Seismic Detector Transport Network Coupler Light Armor Plating Beamcaster Assault Rifle Light Assault Rifle Light Assault Rifle Rocket Launcher Datajack Mining Laser Peak State ------------ > --- POWER ------------ Light Nuclear Core > --- PROPULSION ------- Light Treads Light Treads > --- UTILITY ---------- Improved Heat Sink Huge Storage Unit > --- WEAPON ----------- Beam Cannon Light Assault Rifle > --- INVENTORY -------- Ion Engine Light Ion Engine Light Ion Engine Improved Heat Sink Medium Matter Pod Structural Scanner Structural Scanner Signal Interpreter Improved Terrain Scanner Improved Terrain Scanner Seismic Detector Seismic Detector Transport Network Coupler Beamcaster Light Assault Rifle Light Assault Rifle Light Assault Rifle Grenade Launcher Datajack Mining Laser [Rating: 14] Favorites ----------- Power Light Ion Engine Engine Light Ion Engine Power Core Light Nuclear Core Propulsion Light Treads Treads Light Treads Utility Huge Storage Unit Device Structural Scanner Storage Huge Storage Unit Protection Light Armor Plating Weapon Light Assault Rifle Energy Gun Particle Gun Energy Cannon Beam Cannon Ballistic Gun Light Assault Rifle Launcher Grenade Launcher Build | -11 -10 -10 -10 ------- Run | Yrd Mat Min Sub Slots Evolved . | . . . . Power . | . . . . Propulsion . | . . . . Utility . | . . . . Weapon . | . . . . Parts Attached 33 | 8 10 12 3 Power 3 | 1 1 1 . Engine 2 | 1 1 . . Core 1 | . . 1 . Reactor . | . . . . Propulsion 5 | 2 2 . 1 Treads 5 | 2 2 . 1 Leg . | . . . . Wheel . | . . . . Hover . | . . . . Flight . | . . . . Utility 12 | 2 3 5 2 Device 7 | 1 1 4 1 Storage 3 | 1 2 . . Processor . | . . . . Hackware . | . . . . Protection 2 | . . 1 1 Artifact . | . . . . Weapon 13 | 3 4 6 . Energy Gun 4 | 2 2 . . Energy Cannon 1 | . . 1 . Ballistic Gun 6 | 1 2 3 . Ballistic Cannon . | . . . . Launcher 2 | . . 2 . Special Weapon . | . . . . Impact Weapon . | . . . . Slashing Weapon . | . . . . Piercing Weapon . | . . . . Special Melee Weapon . | . . . . Unidentified Prototypes . | . . . . Parts Lost 5 | . 4 . 1 Power . | . . . . Propulsion 2 | . 1 . 1 Utility . | . . . . Weapon 3 | . 3 . . Highest Loss Streak 2 | . 2 . 1 To Critical Strikes . | . . . . Average Slot Usage (%) 99 | . 99 99 100 Engine 9 | . 14 2 . Core 4 | . . 11 14 Treads 27 | . 27 28 28 Device 11 | . 14 7 8 Storage 14 | . 14 14 14 Protection 2 | . . 6 5 Energy Gun 2 | . 3 . . Energy Cannon 5 | . . 13 14 Ballistic Gun 20 | . 24 13 14 Naked Turns . | . . . . Heaviest Build 94 | 14 90 94 94 Greatest Support 40 | 40 40 40 40 Greatest Overweight (x) 3 | 3 2 2 2 Average Overweight (x) 1 | . 1 2 2 Largest Inventory Capacity 25 | 8 25 25 25 Average Capacity 24 | 7 24 25 25 Most Carried 25 | 6 18 25 25 Average Carried 17 | 3 14 22 24 Final Capacity 25 | 8 25 25 25 Final Carried 25 | 6 18 25 24 Class Distribution -------------------- 60% | Mutant 39% | Scavenger-Mutant Dominant Class ---------------- Mutant | -10/Materials Mutant | -10/Mines Mutant | -10/Subcaves Resources | -11 -10 -10 -10 ----------- Run | Yrd Mat Min Sub Matter Collected 810 | 289 304 217 . Remotely . | . . . . Salvage Created 1305 | 159 778 368 . Parts 87 | 12 57 18 . Haulers Intercepted 2 | . 2 . . Recyclers Shooed . | . . . . Parts Field Recycled . | . . . . Retrieved Matter . | . . . . Parts Self-Destructed . | . . . . Prevented . | . . . . Kills | -11 -10 -10 -10 ------- Run | Yrd Mat Min Sub Combat Hostiles Destroyed 27 | . 14 13 . Guns 18 | . 14 4 . Cannons 7 | . . 7 . AOE 2 | . . 2 . Classes Destroyed 10 | 2 7 1 . Builder 1 | . 1 . . Tunneler 4 | 3 1 . . Hauler 2 | . 2 . . Recycler 2 | 1 1 . . Mechanic 1 | . 1 . . Operator 1 | . 1 . . Watcher 3 | . 3 . . Swarmer 7 | . 5 2 . Grunt 17 | . 9 8 . Assembled 3 | . . 3 . Best Kill Streak 4 | 2 4 3 . Combat Bots Only 3 | . 3 3 . Max Kills in Single Turn 2 | 1 2 1 . Gunslinging . | . . . . Exploded 1 | . . 1 . Melee . | . . . . Uniques/NPCs Destroyed . | . . . . Combat | -11 -10 -10 -10 -------- Run | Yrd Mat Min Sub Hostile Shots Fired 153 | . 97 53 3 Missed 47 | . 28 19 . Damage Taken 1324 | . 789 455 80 Core 272 | . 145 99 28 Absorbed by Shields . | . . . . Regen/Repaired (Parts) 120 | . 120 . . Core Remaining (%) 100 | 100 . . . Volleys Fired 127 | 9 88 29 1 Largest 2 | 2 2 2 2 Hottest 90 | 60 85 90 83 Shots Fired 248 | 18 170 58 2 Gun 213 | 18 170 24 1 Cannon 30 | . . 29 1 Launcher 5 | . . 5 . Special . | . . . . Kinetic 147 | 9 113 24 1 Thermal 84 | . 54 29 1 Explosive 5 | . . 5 . Electromagnetic 12 | 9 3 . . Robot Hit Streak 11 | 3 11 7 4 Robot Miss Streak 5 | 2 5 3 . Penetration Max . | . . . . Secondary Targets 3 | . 3 . . Max Gunslinging Chain 1 | . 1 . . Shots Hit Robots 142 | 9 99 32 2 Core Hits 72 | 6 47 19 . Critical Kills 2 | . 1 1 . Critical Parts Destroyed 1 | 1 . . . Critical Strikes 5 | 1 3 1 . Burn 2 | . 2 . . Destroy 3 | 1 1 1 . Melee Attacks . | . . . . Impact . | . . . . Slashing . | . . . . Piercing . | . . . . Sneak Attacks . | . . . . Combat Hostiles . | . . . . Follow-up Attacks . | . . . . Damage Inflicted 1939 | 96 1043 767 33 Guns 1278 | 96 1043 124 15 Cannons 339 | . . 321 18 Explosions 322 | . . 322 . Melee . | . . . . Ramming . | . . . . Kinetic 710 | 32 539 124 15 Thermal 815 | . 476 321 18 Explosive 322 | . . 322 . Electromagnetic 92 | 64 28 . . Impact . | . . . . Slashing . | . . . . Piercing . | . . . . Highest Corruption . | . . . . Average Corruption . | . . . . Corruption Purged . | . . . . Corruption Blocked . | . . . . Overload Shots . | . . . . Overflow Damage . | . . . . Projectiles . | . . . . Explosions . | . . . . Melee . | . . . . Knockbacks . | . . . . Impact . | . . . . Kinetic . | . . . . Secondary . | . . . . Self-Inflicted Damage 11 | . . 11 . Shots 1 | . . 1 . Rammed . | . . . . Targets Rammed . | . . . . Kicked . | . . . . Crushed . | . . . . Highest Temperature 236 | 40 236 186 . Average Temperature 72 | 16 83 60 . Received Heat Transfer 441 | . 216 198 27 Effects 1 | . 1 . . Interference 1 | . 1 . . Siege Activations . | . . . . Robots Corrupted . | . . . . Combat Hostiles . | . . . . Parts Fried . | . . . . Impact Corruptions . | . . . . Robots Melted . | . . . . Combat Hostiles . | . . . . Parts Melted 2 | . 2 . . Heat Transferred 2072 | . 1369 666 37 Parts Sabotaged . | . . . . Parts Stolen . | . . . . Parts Stripped . | . . . . Power Chain Reactions . | . . . . Alert | -11 -10 -10 -10 ------- Run | Yrd Mat Min Sub Peak Influence 224 | 20 224 183 . Initial 13 | . 13 2 . Average 38 | 8 40 36 . Maximum Alert Level 1 | . 1 . . Low Security (%) 98 | 100 97 100 . Level 1 1 | . 2 . . Level 2 . | . . . . Level 3 . | . . . . Level 4 . | . . . . Level 5 . | . . . . High Security . | . . . . Max Security . | . . . . Squads Dispatched 6 | . 4 2 . Investigation 3 | . 3 . . Extermination . | . . . . Reinforcement 1 | . 1 . . Assault 2 | . . 2 . Garrison . | . . . . Intercept . | . . . . Searches Triggered . | . . . . Construction Impeded . | . . . . Haulers Reinforced . | . . . . Active Scanning Responses . | . . . . Cargo Convoy Interrupts . | . . . . Stealth | -11 -10 -10 -10 --------- Run | Yrd Mat Min Sub Distress Signals . | . . . . Communications Jammed . | . . . . Distress Signals . | . . . . Times Spotted 53 | . 30 22 1 Peak Tracking Total 4 | . 3 4 1 Tactical Retreats 3 | . 1 2 . Traps | -11 -10 -10 -10 ------- Run | Yrd Mat Min Sub Traps Triggered 2 | . 2 . . Indirectly . | . . . . Trap Hack Attempts . | . . . . Triggered . | . . . . Disarmed . | . . . . Reprogrammed . | . . . . Reused . | . . . . Traps Extracted . | . . . . Installed . | . . . . Triggered . | . . . . Machines | -11 -10 -10 -10 ---------- Run | Yrd Mat Min Sub Machines Disabled . | . . . . Max in Single Turn . | . . . . Machines Repaired . | . . . . Machines Dismantled . | . . . . Machines Sabotaged . | . . . . Overloaded Fab Kills . | . . . . Hacking | -11 -10 -10 -10 --------- Run | Yrd Mat Min Sub Machines Accessed 9 | . 9 . . Terminals 6 | . 6 . . Fabricators . | . . . . Repair Stations 1 | . 1 . . Recycling Units 2 | . 2 . . Scanalyzers . | . . . . Garrison Access . | . . . . Total Hacks 23 | . 23 . . Successful 12 | . 12 . . Failed 10 | . 10 . . Catastrophic . | . . . . Database Lockouts 1 | . 1 . . Manual 15 | . 15 . . Terminals 18 | . 18 . . Fabricators . | . . . . Repair Stations 2 | . 2 . . Recycling Units 3 | . 3 . . Scanalyzers . | . . . . Garrison Access . | . . . . Terminal Hacks 8 | . 8 . . Robot Analysis 2 | . 2 . . Unreport Threat 2 | . 2 . . Locate Traps 2 | . 2 . . Transport Status 1 | . 1 . . Zone Layout 1 | . 1 . . Fabricator Hacks . | . . . . Repair Station Hacks 2 | . 2 . . Scan Component 1 | . 1 . . Repair 1 | . 1 . . Recycling Unit Hacks . | . . . . Scanalyzer . | . . . . Garrison Access Hacks . | . . . . Unauthorized Hacks 2 | . 2 . . Terminals . | . . . . Fabricators . | . . . . Repair Stations . | . . . . Recycling Units 2 | . 2 . . Mask 2 | . 2 . . Scanalyzers . | . . . . Garrison Access . | . . . . Data Cores Recovered . | . . . . Used . | . . . . Hacking Detections 8 | . 8 . . Full Trace Events 1 | . 1 . . Feedback Events . | . . . . Feedback Blocked . | . . . . Robot Schematics Acquired . | . . . . Robots Built . | . . . . Authchips . | . . . . Time . | . . . . Total Robot Build Rating . | . . . . Part Schematics Acquired . | . . . . Parts Built . | . . . . Authchips . | . . . . Time . | . . . . Total Part Build Rating . | . . . . Parts Repaired 1 | . 1 . . Time 26 | . 26 . . Parts Recycled . | . . . . Recycled Matter . | . . . . Retrieved Matter . | . . . . Retrieved Components . | . . . . Parts Scanalyzed . | . . . . Part Schematics Acquired . | . . . . Parts Damaged . | . . . . Bothacking | -11 -10 -10 -10 ------------ Run | Yrd Mat Min Sub Used RIF Installer . | . . . . Robots Hacked . | . . . . Non-combat . | . . . . Combat . | . . . . Robot Hacks Applied . | . . . . Relay Couplers Released . | . . . . Fabnet Peak Effective % . | . . . . Robots Rewired . | . . . . Allies Hacked . | . . . . Hacks Repelled . | . . . . Allies | -11 -10 -10 -10 -------- Run | Yrd Mat Min Sub Total Allies 1 | . . 1 . Largest Group 1 | . . 1 . Highest-Rated Group 31 | . . 31 . Highest-Rated Ally 31 | . . 31 . Total Orders . | . . . . Ally Attacks 10 | . . 10 . Total Damage 127 | . . 127 . Kills 2 | . . 2 . Allies Corrupted . | . . . . Allies Melted . | . . . . Intel | -11 -10 -10 -10 ------- Run | Yrd Mat Min Sub Robot Analysis Total 2 | . 2 . . Derelict Logs Recovered 1 | . . . 1 Drone Launches . | . . . . Drone Recoveries . | . . . . Exploration | -11 -10 -10 -10 ------------- Run | Yrd Mat Min Sub Turns Passed 5119 | 134 3086 1782 117 Spaces Moved 1499 | 57 888 519 35 Core 7 | 7 . . . Treads 1492 | 50 888 519 35 Legs . | . . . . Wheels . | . . . . Hover . | . . . . Flight . | . . . . Fastest Speed 50 | 50 160 320 320 Average Speed 309 | 154 313 320 320 Slowest Speed 320 | 200 320 320 320 Overloaded Moves . | . . . . Propulsion Burnouts . | . . . . Robots Hopped . | . . . . Cave-ins Triggered . | . . . . Exploration Rate (%) 49 | 5 98 88 7 Regions Visited 3 Branch Regions 2 Pre-discovered Areas 1 | . . . 1 Known Exits Taken . | . . . . Unknown Exits Taken 3 | 1 1 1 . Scrap Searched 2 | . . 2 . Spaces Dug . | . . . . Terrain Destroyed 32 | . . 32 . Melee . | . . . . Projectile . | . . . . AOE 32 | . . 32 . Terrain Rammed . | . . . . Walls Destroyed . | . . . . Machines Disabled . | . . . . Actions | -11 -10 -10 -10 --------- Run | Yrd Mat Min Sub Total 1757 | 86 1048 584 39 Wait 41 | . 36 5 . Move 1496 | 56 887 518 35 Hop . | . . . . Pick Up 48 | 13 22 13 . Fast Attach 1 | . . 1 . Attach 13 | 7 5 . 1 Detach . | . . . . Swap 19 | 1 5 11 2 Drop 12 | . 5 7 . Fire 127 | 9 88 29 1 Melee . | . . . . Ram . | . . . . Kick . | . . . . Crush . | . . . . Escape Stasis . | . . . . Rewire . | . . . . Trap . | . . . . Miscellaneous . | . . . . Route ------- -11/Scrapyard -10/Materials (discovered 5 exits: [*Mat x3] / [*Min] / [*Sub]) -10/Mines -10/Subcaves History --------- Turn | Location | Event 14 | -11/Scrapyard | Discovered new exit (range 15) 135 | -11/Scrapyard | Entered Materials 313 | -10/Materials | Build established: Mutant 490 | -10/Materials | Discovered new exit (range 9) 674 | -10/Materials | Discovered new exit (range 5) 892 | -10/Materials | Discovered new exit (range 3) 988 | -10/Materials | Core integrity fell below 50% 1088 | -10/Materials | Central database locked down 1269 | -10/Materials | Discovered new exit (range 13) 2015 | -10/Materials | Build established: Scavenger-Mutant 2183 | -10/Materials | Repaired Lgt. Treads 3180 | -10/Materials | Discovered new exit (range 14) 3221 | -10/Materials | Entered Mines 3229 | -10/Mines | Assembled infested the area 3234 | -10/Mines | Assisted by a Guerilla fighting off Assembled 3442 | -10/Mines | Met a Derelict testing a Signal Generator 4109 | -10/Mines | Core integrity fell below 20% 4112 | -10/Mines | Joined a pair of Derelicts in attacking an 0b10 outpost 4273 | -10/Mines | Received a Rocket Launcher from a helpful Derelict 4376 | -10/Mines | Build established: Mutant 4984 | -10/Mines | Discovered new exit (range 6) 5003 | -10/Mines | Entered Subcaves 5013 | -10/Subcaves | Learned location of Recycling (-7) 5120 | -10/Subcaves | Destroyed by 0S-DEC(R) with Subdweller Beam Cannon Last Messages --------------- 04279_ Dropped Grenade Launcher. 04279_ Acquired Rocket Launcher. 04469_ S-10 Pest destroyed. 04475_ Acquired 6 matter. 04698_ G-47 Trooper destroyed. 04706_ Acquired 12 matter. 04783_ T-07 Excavator destroyed. 04784_ U-05 Engineer builds a Wall. 04792_ G-34 Mercenary destroyed. 04817_ Acquired 13 matter. 04824_ Acquired 2 matter. 04840_ K-01 Serf collects debris. 04984_ EXIT=FOUND LOCATION=UNKNOWN AMBIENT_HEAT=-10 GOAL=ESCAPE 05013_ Acquired derelict log, extracted data. World map updated: -7/Recycling. 05116_ 0S-DEC(R): "SUBMAD!" 05116_ Lgt. Treads destroyed. Map ----- +----------------------------------------------------+ | ?????????????????????????????????????????????????? | | ?????????????????????????????????????????????????? | | ?????????????????????????????????????????????????? | | ?????????????????????????????????????????????????? | | ?????????????????????????????????????????????????? | | ?????????????????????????????????????????????????? | | ?????????????????????????????????????????????????? | | ??????????????????????????????###########????????? | | ????????????????????????????#################????? | | ????????????????????????????#### ### #######???? | | ????????????????????????????## ## ####??? | | ????????????????????????????### ###??? | | ???????????????????????????????## ##??# | | ?????????????????????????######### ##### | | ?????????????????????????######### ##### | | ?????????????????????????## | | ?????????????????????????## | | ????????????????????????#### | | ??????????????????????####### ## | | ?????????????????????##### ## ###### | | ?????????????????????### ## ###### | | ????????????????????### ##### | | ??????????????????##### ### | | ?????????????## ?##### ## ### | | ?????????????## ## ## #### | | ?????????????## @ #### # | | ?????????????## ## ##?## # | | ?????????????"###R ## #### ###?# # | | ?????????????#### ### ## #### ###?## ## | | ???????????????## ??## ### #### ##?### | | ????????????????????# ### ## " ##### | | ???????????????????? ?## """ #### # | | ????????????????? ? " ?? #### ## | | ????????????????? # ?? """??????# ## | | ????????????????## ??""" "" ?"?????# ## | | ????????????????### ??""" "" ??????# #? | | ????????????????### ????" ""??????# ##? | | ?????????????????########????####??????##########? | | ?????????????????########????####????????????????? | | ?????????????????????????????????????????????????? | | ?????????????????????????????????????????????????? | | ?????????????????????????????????????????????????? | | ?????????????????????????????????????????????????? | | ?????????????????????????????????????????????????? | | ?????????????????????????????????????????????????? | | ?????????????????????????????????????????????????? | | ?????????????????????????????????????????????????? | | ?????????????????????????????????????????????????? | | ?????????????????????????????????????????????????? | | ?????????????????????????????????????????????????? | +----------------------------------------------------+ Best States ------------- Heat Dissipation 39 Energy Generation 14 Energy Capacity 250 Matter Stores 300 Matter Capacity 300 Sight Range 16 Terrain Scan Density 10 Armor Coverage 150 Evasion (%) 40 Recoil Reduction 2 Item Schematics ----------------- None Robot Schematics ------------------ None Fabricated ------------ Nothing Alien Tech Used ----------------- None Achievements -------------- None Challenges ------------ None Game ------ Seed TacticalHeartEdition Manual? 0 Play Time 00:18:08 Cumulative 45.5 hours Start 2024.05.10 @ 01:44:15 End 2024.05.10 @ 02:05:42 Sessions 1 Manual Loads 0 Difficulty Rogue Special Mode None Game No. 55 Rogue 50 Adventurer 5 Explorer 0 Win Type - Total 0 Types 0/0/0/0/0/0/0/0/0 Lore% 27 Gallery% 30 Achievement% 25 Wizard Run 0 Options --------- Layout 2 ASCII 0 Keyboard 0 Movement Mouse Keybinds 0 Fullscreen 2 Font 24/Smallcaps Map View 50x44 Zoom Use 0% Tactical HUD 1 Map Filters NONE Filters NONE Steam 1 RUN: 804fb72d-666f-4c13-b85e-860d7037a4ef